bitfinex-derivatives/quotes_BTCF0:USTF0_20250814
["timestamp","ask_amount","ask_price","bid_price","bid_amount"]
[1755166732101,0.0206695,121770.0,121760.0,0.50373276]
[1755166732302,0.0206695,121770.0,121760.0,1.74546925]
[1755166732497,0.0206695,121770.0,121760.0,0.98094925]
[1755166732790,0.0206695,121770.0,121760.0,1.74546925]
[1755166732999,0.0432095,121770.0,121760.0,1.74554925]
[1755166733499,0.0432095,121770.0,121760.0,1.26833276]
[1755166733700,0.0764995,121770.0,121760.0,1.74554925]
[1755166734001,0.1250695,121770.0,121760.0,1.74554925]
[1755166734199,0.1396795,121770.0,121760.0,1.74554925]
[1755166734600,0.1396795,121770.0,121760.0,1.25035276]
[1755166734994,0.1396795,121770.0,121760.0,1.74650925]
[1755166735197,0.1396795,121770.0,121760.0,1.26929276]
[1755166735396,0.1396795,121770.0,121760.0,1.74650925]
[1755166735596,0.1190101,121770.0,121760.0,1.74650925]
[1755166735996,0.1190101,121770.0,121760.0,1.26929276]
[1755166736200,0.1190101,121770.0,121760.0,1.74650925]
[1755166737598,0.07185,121780.0,121760.0,1.14511575]
[1755166737802,0.08144,121780.0,121770.0,1.72444509]
[1755166738495,0.097,121780.0,121770.0,1.72444509]
[1755166739208,0.097,121780.0,121770.0,1.2472286]
[1755166739404,0.097,121780.0,121770.0,1.72444509]
[1755166739601,0.12093,121780.0,121770.0,1.2472286]
[1755166739806,0.12093,121780.0,121770.0,1.74996509]
[1755166740003,0.12093,121780.0,121770.0,1.2727486]
[1755166740405,0.12093,121780.0,121770.0,1.2723886]
[1755166741496,0.12093,121780.0,121770.0,1.2727086]
[1755166742394,0.002,121780.0,121770.0,0.98396509]
[1755166742599,0.002,121780.0,121770.0,1.74984509]
[1755166743610,0.002,121780.0,121770.0,0.98396509]
[1755166743908,0.002,121780.0,121770.0,1.74964509]
[1755166744714,0.002,121780.0,121770.0,1.2724286]
[1755166745305,0.002,121780.0,121770.0,0.98396509]
[1755166745719,0.12093,121780.0,121770.0,1.74996509]
[1755166746410,0.097,121780.0,121770.0,1.74996509]
[1755166746603,0.05724,121780.0,121770.0,1.74996509]
[1755166746809,0.002,121780.0,121770.0,0.98396509]
[1755166747010,0.002,121780.0,121770.0,1.74996509]
[1755166748115,0.002,121780.0,121770.0,1.2727486]
[1755166748313,0.002,121780.0,121770.0,1.74996509]
[1755166748612,0.002,121780.0,121770.0,1.2727486]
[1755166748913,0.002,121780.0,121770.0,1.74996509]
[1755166749510,0.03624,121780.0,121770.0,1.74996509]
[1755166750208,0.002,121780.0,121770.0,1.74996509]
[1755166751015,0.002,121780.0,121770.0,1.2727486]
[1755166751212,0.002,121780.0,121770.0,0.98396509]
[1755166751513,0.03624,121780.0,121770.0,1.2724686]
[1755166751715,0.05724,121780.0,121770.0,1.74968509]
[1755166752112,0.06683,121780.0,121770.0,1.74968509]
[1755166752415,0.12093,121780.0,121770.0,1.2723886]
[1755166754517,0.097,121780.0,121770.0,1.2723886]
[1755166755221,0.097,121780.0,121770.0,1.74960509]
[1755166756221,0.08239,121780.0,121770.0,1.74960509]
[1755166756709,0.002,121780.0,121770.0,0.98396509]
[1755166756912,0.15836246,121790.0,121770.0,1.4361414]
[1755166757111,0.15836246,121790.0,121780.0,0.5067418]
[1755166757313,0.16795246,121790.0,121780.0,0.5067418]
[1755166757510,0.18351246,121790.0,121780.0,0.5067418]
[1755166758012,0.18351246,121790.0,121780.0,1.2721818]
[1755166758224,0.18451246,121790.0,121780.0,1.2721818]
[1755166758821,0.18351246,121790.0,121780.0,1.2721818]
[1755166759022,0.18451246,121790.0,121780.0,1.2721818]
[1755166760623,0.18451246,121790.0,121780.0,1.2681818]
[1755166762125,0.06558246,121790.0,121780.0,0.97995829]
[1755166762325,0.06558246,121790.0,121780.0,1.74531829]
[1755166762726,0.06558246,121790.0,121780.0,1.2681018]
[1755166763322,0.06558246,121790.0,121780.0,0.5027418]
[1755166763523,0.18451246,121790.0,121780.0,0.5027418]
[1755166763725,0.18451246,121790.0,121780.0,1.2678218]
[1755166763925,0.18351246,121790.0,121780.0,1.2678218]
[1755166764226,0.20419114,121790.0,121780.0,1.2678218]
[1755166764625,0.20419114,121790.0,121780.0,0.5027418]
[1755166764928,0.20419114,121790.0,121780.0,1.2677418]
[1755166766129,0.20419114,121790.0,121780.0,0.5027418]
[1755166766427,0.20419114,121790.0,121780.0,1.2677018]
[1755166767129,0.28625624,121790.0,121780.0,1.2677018]
[1755166767430,0.28625624,121790.0,121780.0,0.5027418]
[1755166767726,0.20419114,121790.0,121780.0,1.2671818]
[1755166768124,0.20419114,121790.0,121780.0,0.5027418]
[1755166768324,0.20419114,121790.0,121780.0,1.2683818]
[1755166768730,0.28625624,121790.0,121780.0,0.5027418]
[1755166769029,0.28625624,121790.0,121780.0,1.2682218]
[1755166769930,0.20419114,121790.0,121780.0,1.2682218]
[1755166770130,0.28625624,121790.0,121780.0,1.2682218]
[1755166770631,0.28625624,121790.0,121780.0,1.2687818]
[1755166771529,0.92769673,121790.0,121780.0,0.37262]
[1755166771729,0.2006219,121780.0,121770.0,0.6697287]
[1755166772026,0.69851707,121780.0,121770.0,1.4356487]
[1755166772426,0.69851707,121780.0,121770.0,1.4355287]
[1755166772926,0.13922868,121780.0,121770.0,0.6697287]
[1755166773131,0.11522868,121780.0,121770.0,1.4355287]
[1755166773526,0.10117868,121780.0,121770.0,1.4355287]
[1755166774128,0.10117868,121780.0,121770.0,1.91234519]
[1755166774326,0.08458868,121780.0,121770.0,1.91234519]
[1755166774734,0.08458868,121780.0,121770.0,1.4351287]
[1755166775127,0.06391,121780.0,121770.0,1.4351287]
[1755166776927,0.0547,121780.0,121770.0,1.4351287]
[1755166777134,0.07540775,121780.0,121770.0,1.4351287]
[1755166779236,0.0547,121780.0,121770.0,1.4351287]
[1755166780337,0.12849246,121790.0,121780.0,0.1447718]
[1755166780533,0.16324425,121790.0,121780.0,0.5055718]
[1755166781435,0.14254246,121790.0,121780.0,0.5055718]
[1755166781641,0.16335257,121790.0,121780.0,0.5055718]
[1755166782143,0.24541767,121790.0,121780.0,0.5055718]
[1755166782334,0.20394257,121790.0,121780.0,1.2702518]
[1755166783443,0.18313246,121790.0,121780.0,1.2702518]
[1755166784038,0.20394248,121790.0,121780.0,1.2702518]
[1755166784238,0.18313246,121790.0,121780.0,1.2702518]
[1755166784444,0.06458246,121790.0,121780.0,0.5055718]
[1755166784642,0.12077619,121800.0,121780.0,1.3962709]
[1755166784843,0.19138645,121800.0,121790.0,0.5055651]
[1755166785744,0.19138645,121800.0,121790.0,1.2694851]
[1755166786533,0.19238645,121800.0,121790.0,1.2694851]
[1755166786740,0.25949229,121800.0,121790.0,1.2694851]
[1755166787345,0.25849229,121800.0,121790.0,1.2694851]
[1755166787538,0.25949229,121800.0,121790.0,1.2694851]
[1755166789841,0.34155059,121800.0,121790.0,1.2694851]
[1755166790841,0.81876708,121800.0,121790.0,0.1447651]
[1755166791147,0.81876708,121800.0,121790.0,0.8834651]
[1755166791346,0.81876708,121800.0,121790.0,0.9078051]
[1755166795145,0.81876708,121800.0,121790.0,0.5055651]
[1755166795346,0.81876708,121800.0,121790.0,1.2680051]
[1755166799252,0.81876708,121800.0,121790.0,0.9072051]
[1755166799447,0.18883229,121800.0,121790.0,0.5055651]
[1755166799751,0.82012718,121800.0,121790.0,1.2673251]
[1755166800142,0.82012718,121800.0,121790.0,0.5055651]
[1755166800450,0.82012718,121800.0,121790.0,1.2672051]
[1755166800652,0.14094229,121800.0,121790.0,0.5055651]
[1755166800845,0.14094229,121800.0,121790.0,1.2671651]
[1755166802650,0.001,121800.0,121790.0,0.98358159]
[1755166802861,0.002,121810.0,121800.0,0.1052784]
[1755166803152,0.002,121810.0,121800.0,1.70445489]
[1755166803550,0.002,121820.0,121810.0,0.0820517]
[1755166803752,0.002,121820.0,121810.0,1.70463819]
[1755166803955,0.002,121820.0,121810.0,1.70543819]
[1755166804251,0.002,121820.0,121810.0,1.2262217]
[1755166804445,0.002,121820.0,121810.0,1.70343819]
[1755166806649,0.002,121820.0,121810.0,1.70443819]
[1755166807643,1.502,121830.0,121810.0,1.93648889]
[1755166807853,1.502,121830.0,121820.0,0.94119139]
[1755166808256,1.52653,121830.0,121820.0,0.4639749]
[1755166808852,0.002,121840.0,121830.0,0.1011682]
[1755166809058,0.002,121840.0,121830.0,0.93918469]
[1755166809356,0.002,121840.0,121830.0,1.86390469]
[1755166810149,1e-07,121840.0,121830.0,1.10334469]
[1755166810350,1e-07,121840.0,121830.0,1.86378469]
[1755166810659,1e-07,121840.0,121830.0,1.86578469]
[1755166810961,1e-07,121840.0,121830.0,1.10534469]
[1755166811158,1e-07,121840.0,121830.0,1.86546469]
[1755166811759,0.0245301,121840.0,121830.0,1.70130469]
[1755166813150,0.0245301,121840.0,121830.0,1.70118469]
[1755166814663,0.04524005,121840.0,121830.0,0.94118469]
[1755166814850,0.04524005,121840.0,121830.0,1.70110469]
[1755166815253,0.0245301,121840.0,121830.0,1.70110469]
[1755166815454,0.0245301,121840.0,121830.0,0.94118469]
[1755166815761,0.0245301,121840.0,121830.0,1.70106469]
[1755166816266,1e-07,121840.0,121830.0,1.69096469]
[1755166816460,1e-07,121840.0,121830.0,1.85512469]
[1755166816661,1e-07,121840.0,121830.0,1.69096469]
[1755166818668,1e-07,121840.0,121830.0,0.93108469]
[1755166818962,0.0245301,121840.0,121830.0,1.70054469]
[1755166819373,1e-07,121840.0,121830.0,1.69036469]
[1755166819762,1e-07,121840.0,121830.0,1.69024469]
[1755166820862,1e-07,121840.0,121830.0,0.93108469]
[1755166821063,1e-07,121840.0,121830.0,1.69304469]
[1755166821767,1e-07,121840.0,121830.0,0.93108469]
[1755166821968,1e-07,121840.0,121830.0,1.69304469]
[1755166822566,0.1199101,121840.0,121830.0,0.4538682]
[1755166822761,0.14061736,121840.0,121830.0,1.2257682]
[1755166822966,0.14061736,121840.0,121830.0,1.2256882]
[1755166823772,0.22264846,121840.0,121830.0,0.38193]
[1755166824174,0.22264846,121840.0,121830.0,1.2256477]
[1755166824570,0.22264846,121840.0,121830.0,0.4639677]
[1755166825067,0.69986495,121840.0,121830.0,1.12424]
[1755166825265,0.69986495,121840.0,121830.0,0.3628]
[1755166825474,0.1277578,121830.0,121820.0,0.4526645]
[1755166825676,0.21969506,121830.0,121820.0,0.4627645]
[1755166825874,0.69691155,121830.0,121820.0,0.3608]
[1755166826176,0.0820444,121820.0,121810.0,1.5777695]
[1755166826370,0.21972144,121820.0,121810.0,2.3492695]
[1755166827278,0.21972144,121820.0,121810.0,1.5878695]
[1755166827473,0.21972144,121820.0,121810.0,2.25732]
[1755166827668,0.69693793,121820.0,121810.0,1.1224]
[1755166827873,0.69693793,121820.0,121810.0,0.3628]
[1755166828072,0.69693793,121820.0,121810.0,1.12432]
[1755166828273,0.69693793,121820.0,121810.0,1.2063711]
[1755166828479,0.21972144,121820.0,121810.0,1.2063711]
[1755166828673,0.21972144,121820.0,121810.0,0.8455711]
[1755166828874,0.21972144,121820.0,121810.0,0.8475711]
[1755166829567,0.21972144,121820.0,121810.0,0.0860511]
[1755166829767,0.21972144,121820.0,121810.0,0.8475311]
[1755166829970,0.69693793,121820.0,121810.0,0.004]
[1755166830174,0.22052144,121820.0,121810.0,0.76528]
[1755166830374,0.69693793,121820.0,121810.0,0.004]
[1755166830678,0.69773793,121820.0,121810.0,0.7652]
[1755166831576,0.69693793,121820.0,121810.0,0.7652]
[1755166832578,0.69693793,121820.0,121810.0,0.004]
[1755166832781,0.69693793,121820.0,121790.0,0.6069893]
[1755166832782,0.0912879,121800.0,121790.0,0.6069893]
[1755166832975,0.2654638,121800.0,121790.0,0.5448451]
[1755166833281,0.2654638,121800.0,121790.0,1.2327409]
[1755166834374,0.2654638,121800.0,121790.0,1.2367409]
[1755166834572,0.30078,121800.0,121790.0,1.2367409]
[1755166834981,0.30078,121800.0,121790.0,1.2397409]
[1755166835578,0.77799649,121800.0,121790.0,0.3678]
[1755166835783,0.77799649,121800.0,121790.0,0.007]
[1755166835980,0.77799649,121800.0,121790.0,0.7808]
[1755166836170,0.77799649,121800.0,121790.0,0.007]
[1755166836570,0.30078,121800.0,121790.0,0.7806]
[1755166836774,0.77799649,121800.0,121790.0,0.80052]
[1755166837677,0.30078,121800.0,121790.0,0.80052]
[1755166838484,0.30078,121800.0,121790.0,0.79042]
[1755166838782,0.77799649,121800.0,121790.0,0.79042]
[1755166838973,0.77799649,121800.0,121790.0,0.01682]
[1755166839374,0.1202513,121780.0,121770.0,1.6700136]
[1755166839577,0.1990213,121780.0,121770.0,2.4431736]
[1755166840579,0.1990213,121780.0,121770.0,2.4481736]
[1755166840776,1.6990213,121780.0,121770.0,2.4481736]
[1755166841585,2.17623779,121780.0,121770.0,0.79804]
[1755166841880,2.17623779,121780.0,121770.0,0.009]
[1755166842088,2.17623779,121780.0,121770.0,0.78152]
[1755166842878,2.17623779,121780.0,121770.0,0.78136]
[1755166842879,1.6990213,121780.0,121770.0,0.78136]
[1755166843079,2.17623779,121780.0,121770.0,0.78136]
[1755166843479,2.17623779,121780.0,121770.0,0.79146]
[1755166845284,1.6990213,121780.0,121770.0,0.79146]
[1755166845689,2.17623779,121780.0,121770.0,0.79146]
[1755166845888,2.17623779,121780.0,121770.0,0.80128]
[1755166846284,1.6990213,121780.0,121770.0,0.80128]
[1755166848795,2.17623779,121780.0,121770.0,0.80128]
[1755166852988,2.12623779,121780.0,121770.0,0.81675]
[1755166854985,2.16323779,121780.0,121770.0,0.81675]
[1755166855202,2.16323779,121780.0,121770.0,0.8988241]
[1755166855687,1.6860213,121780.0,121770.0,0.8732541]
[1755166855893,1.6860213,121780.0,121770.0,0.9238141]
[1755166855894,1.6736913,121780.0,121770.0,0.9238141]
[1755166857001,1.6873213,121780.0,121770.0,0.9238141]
[1755166863701,0.02337,121780.0,121770.0,1.2620641]
[1755166863902,0.3849439,121790.0,121770.0,1.88771519]
[1755166864107,0.46743795,121790.0,121780.0,0.5054782]
[1755166864505,0.46743795,121790.0,121780.0,1.2739182]
[1755166865308,0.4467339,121790.0,121780.0,1.2739182]
[1755166865805,0.4467339,121790.0,121780.0,1.2759182]
[1755166866108,0.4467339,121790.0,121780.0,0.5074782]
[1755166866308,0.4467339,121790.0,121780.0,1.2759182]
[1755166866607,0.1525446,121790.0,121780.0,0.5074782]
[1755166866809,0.1525446,121790.0,121780.0,1.2753982]
[1755166867010,0.4664062,121800.0,121790.0,0.1446712]
[1755166867209,0.4664062,121800.0,121790.0,0.5054712]
[1755166867410,0.3999503,121800.0,121790.0,0.5054712]
[1755166868502,0.3999503,121800.0,121790.0,0.5084712]
[1755166871315,0.3863203,121800.0,121790.0,0.5084712]
[1755166871613,0.3999503,121800.0,121790.0,0.5084712]
[1755166872213,0.3999503,121800.0,121790.0,1.2751112]
[1755166872809,0.3999503,121800.0,121790.0,1.2525612]
[1755166873014,0.87716679,121800.0,121790.0,1.2525612]
[1755166873314,0.82716679,121800.0,121790.0,1.2525612]
[1755166874615,0.86911063,121800.0,121790.0,1.2525612]
[1755166875819,0.86911063,121800.0,121790.0,0.4859212]
[1755166876018,0.86911063,121800.0,121790.0,0.8512212]
[1755166876617,0.86911063,121800.0,121790.0,0.0850612]
[1755166876818,0.86911063,121800.0,121790.0,0.8512212]
[1755166881317,0.86911063,121800.0,121790.0,0.8609112]
[1755166881515,0.86911063,121800.0,121790.0,0.8751012]
[1755166881718,0.86911063,121800.0,121790.0,0.8912812]
[1755166882517,0.93432598,121800.0,121790.0,0.8912812]
[1755166883023,0.45710949,121800.0,121790.0,0.9138312]
[1755166883210,0.93432598,121800.0,121790.0,0.9138312]
[1755166883619,0.93432598,121800.0,121790.0,1.2732312]
[1755166884218,0.44347949,121800.0,121790.0,1.2732312]
[1755166884522,0.45783949,121800.0,121790.0,0.5084712]
[1755166884723,0.45783949,121800.0,121790.0,1.2733512]
[1755166885325,0.93505598,121800.0,121790.0,0.5084712]
[1755166885726,0.93505598,121800.0,121790.0,1.2731512]
[1755166889625,0.93505598,121800.0,121790.0,1.2727912]
[1755166892631,0.93505598,121800.0,121790.0,0.5084712]
[1755166892928,0.93505598,121800.0,121790.0,1.2719912]
[1755166893634,0.86768448,121800.0,121790.0,1.2719912]
[1755166893926,0.98683025,121800.0,121790.0,0.3638]
[1755166894343,1.32690755,121800.0,121790.0,0.003]
[1755166894635,1.34763202,121800.0,121790.0,0.003]
[1755166895438,2.11043202,121800.0,121790.0,0.003]
[1755166897735,2.27464002,121800.0,121790.0,0.003]
[1755166901639,2.11043202,121800.0,121790.0,0.003]
[1755166903934,2.10907202,121800.0,121790.0,0.003]
[1755166904130,0.1294089,121780.0,121770.0,1.3824436]
[1755166904342,0.67892539,121780.0,121770.0,0.3608]
[1755166904645,0.2017157,121770.0,121760.0,0.5269624]
[1755166904846,0.67893219,121770.0,121760.0,1.2885224]
[1755166905137,0.67893219,121770.0,121760.0,1.12436]
[1755166905437,0.67893219,121770.0,121760.0,0.3628]
[1755166905830,0.67893219,121770.0,121760.0,0.4448823]
[1755166906028,0.67893219,121770.0,121760.0,1.2065623]
[1755166906227,0.67893219,121770.0,121760.0,1.2064423]
[1755166906740,0.67893219,121770.0,121760.0,1.2204223]
[1755166906936,0.67893219,121770.0,121760.0,1.2302623]
[1755166907141,0.67893219,121770.0,121760.0,1.2332623]
[1755166907345,0.67893219,121770.0,121760.0,1.2372623]
[1755166907842,0.67893219,121770.0,121760.0,1.2342623]
[1755166908043,0.67893219,121770.0,121760.0,1.2312623]
[1755166908246,0.67893219,121770.0,121760.0,1.14918]
[1755166908438,0.0820826,121760.0,121750.0,0.44499428]
[1755166908643,0.67893909,121760.0,121750.0,0.02813]
[1755166908844,0.67893909,121760.0,121750.0,0.78925]
[1755166909147,0.67893909,121760.0,121750.0,0.80323]
[1755166909338,0.67893909,121760.0,121750.0,0.1241994]
[1755166909534,0.67893909,121760.0,121750.0,0.8853194]
[1755166910044,0.67893909,121760.0,121750.0,0.1261994]
[1755166910442,0.67893909,121760.0,121750.0,0.8871594]
[1755166910636,0.67893909,121760.0,121750.0,0.9116794]
[1755166911247,0.67893909,121760.0,121750.0,0.9136794]
[1755166911448,0.67893909,121760.0,121750.0,1.2744794]
[1755166912247,0.2017226,121760.0,121750.0,1.2744794]
[1755166912448,0.67893909,121760.0,121750.0,1.2744794]
[1755166912949,0.2017226,121760.0,121750.0,1.2744794]
[1755166914147,0.67893909,121760.0,121750.0,1.2495994]
[1755166915153,0.67893909,121760.0,121750.0,0.4587694]
[1755166915350,0.67893909,121760.0,121750.0,0.8585294]
[1755166915549,0.67893909,121760.0,121750.0,0.006]
[1755166915754,1.03973909,121760.0,121750.0,0.006]
[1755166918553,1.9642431,121760.0,121750.0,0.006]
[1755166918752,1.9645231,121760.0,121750.0,0.006]
[1755166919655,1.80025909,121760.0,121750.0,0.006]
[1755166919855,1.03973909,121760.0,121750.0,0.006]
[1755166920057,1.80009909,121760.0,121750.0,0.006]
[1755166920760,1.80009909,121760.0,121750.0,0.1273694]
[1755166921056,1.80005909,121760.0,121750.0,0.04528]
[1755166921453,1.03973909,121760.0,121750.0,0.1273694]
[1755166921751,0.1883426,121760.0,121750.0,0.5110594]
[1755166921959,0.1883426,121760.0,121750.0,1.2712594]
[1755166922257,0.1883426,121760.0,121750.0,0.5110594]
[1755166922463,0.164156,121770.0,121760.0,0.03654]
[1755166922756,0.0820757,121770.0,121760.0,0.5050527]
[1755166922956,0.37267776,121780.0,121770.0,0.1442459]
[1755166923157,0.26281776,121780.0,121770.0,0.5050459]
[1755166923454,0.32067776,121780.0,121770.0,1.2651659]
[1755166923663,0.36870776,121780.0,121770.0,1.2651659]
[1755166923853,0.38227776,121780.0,121770.0,1.2651659]
[1755166929465,0.38227776,121780.0,121770.0,1.2646459]
[1755166931363,0.33379776,121780.0,121770.0,1.2646459]
[1755166931558,0.36870776,121780.0,121770.0,1.2646459]
[1755166931754,0.30816776,121780.0,121770.0,1.2646459]
[1755166932158,0.36870776,121780.0,121770.0,1.2646459]
[1755166932363,0.84592425,121780.0,121770.0,1.2649259]
[1755166932554,0.85949425,121780.0,121770.0,1.2649259]
[1755166934360,0.80949425,121780.0,121770.0,1.2649259]
[1755166934758,0.80949425,121780.0,121770.0,3.2649259]
[1755166942661,0.80949425,121780.0,121770.0,2.1213559]
[1755166942964,0.80949425,121780.0,121770.0,2.8672659]
[1755166943162,0.80949425,121780.0,121770.0,2.1077059]
[1755166943362,0.80949425,121780.0,121770.0,2.8809159]
[1755166944165,0.82676803,121780.0,121770.0,2.0]
[1755166944470,1.18756803,121780.0,121770.0,2.75956]
[1755166944774,1.18756803,121780.0,121770.0,2.77326]
[1755166946769,1.18756803,121780.0,121770.0,2.0137]
[1755166946970,1.18756803,121780.0,121770.0,2.77322]
[1755166947375,1.18756803,121780.0,121770.0,2.0137]
[1755166947573,1.18756803,121780.0,121770.0,2.77322]
[1755166947773,1.18756803,121780.0,121770.0,2.855296]
[1755166948273,0.81319803,121780.0,121770.0,2.481096]
[1755166948466,0.33598154,121780.0,121770.0,3.240616]
[1755166948667,0.81319803,121780.0,121770.0,3.240616]
[1755166951474,0.33598154,121780.0,121770.0,3.240616]
[1755166952679,0.23349154,121780.0,121770.0,3.240616]
[1755166954574,0.26556704,121780.0,121770.0,3.240616]
[1755166955282,0.24489326,121780.0,121770.0,3.240616]
[1755166957071,0.26943326,121780.0,121770.0,3.240616]
[1755166957273,0.74664975,121780.0,121770.0,3.240616]
[1755166958478,0.84064975,121780.0,121770.0,3.240616]
[1755166960773,0.82581975,121780.0,121770.0,3.240616]
[1755166961680,0.84064975,121780.0,121770.0,3.240616]
[1755166963584,0.84064975,121780.0,121770.0,2.481096]
[1755166963781,0.36343326,121780.0,121770.0,2.481096]
[1755166963986,0.82581975,121780.0,121770.0,3.240456]
[1755166965077,0.82581975,121780.0,121770.0,2.4565765]
[1755166965276,0.86135647,121780.0,121770.0,3.2159365]
[1755166965476,0.84064975,121780.0,121770.0,2.3745]
[1755166965680,0.8613568,121780.0,121770.0,2.77306]
[1755166968187,0.8613568,121780.0,121770.0,2.8551365]
[1755166968578,0.8613568,121780.0,121770.0,2.8796565]
[1755166968987,0.8613568,121780.0,121770.0,2.1202965]
[1755166969283,0.8613568,121780.0,121770.0,2.77302]
[1755166969486,0.8613568,121780.0,121770.0,2.8550965]
[1755166969786,0.8613568,121780.0,121770.0,2.8796165]
[1755166970787,0.8613568,121780.0,121770.0,2.79754]
[1755166970988,1.2221568,121780.0,121770.0,2.79754]
[1755166971590,1.2221568,121780.0,121770.0,2.8796165]
[1755166971778,1.2221568,121780.0,121770.0,2.77302]
[1755166972081,1.2221568,121780.0,121770.0,2.0137]
[1755166972280,1.2221568,121780.0,121770.0,2.0]
[1755166972879,1.2221568,121780.0,121770.0,2.0137]
[1755166974892,1.98272954,121780.0,121770.0,2.0137]
[1755166975094,1.98272954,121780.0,121770.0,2.03822]
[1755166978789,1.98272954,121780.0,121770.0,2.1202966]
[1755166979297,1.22348954,121780.0,121770.0,2.1202966]
[1755166980895,1.22348954,121780.0,121770.0,2.03822]
[1755166981694,1.22348954,121780.0,121770.0,2.0137]
[1755166983499,1.22348954,121780.0,121770.0,2.0]
[1755166983698,1.98260954,121780.0,121770.0,2.0]
[1755166984988,1.98260954,121780.0,121770.0,1.70332928]
[1755166989088,1.98252954,121780.0,121770.0,1.70332928]
[1755166989403,1.98252954,121780.0,121770.0,1.71782928]
[1755166989793,1.22348954,121780.0,121770.0,1.71782928]
[1755166990095,1.98252954,121780.0,121770.0,1.71782928]
[1755166992998,1.98248954,121780.0,121770.0,1.71782928]
[1755166995191,1.98249004,121780.0,121770.0,1.71782928]
[1755166995904,1.22349004,121780.0,121770.0,1.71782928]
[1755166996094,1.22349004,121780.0,121770.0,1.69957761]
[1755166996292,2.14665004,121780.0,121770.0,0.79741137]
[1755166996492,2.14665004,121780.0,121770.0,0.77891137]
[1755166998000,2.14665004,121780.0,121770.0,0.73140317]
[1755166998303,2.14665004,121780.0,121770.0,0.68743917]
[1755166998790,2.14665004,121780.0,121770.0,0.64382917]
[1755166998996,2.14665004,121780.0,121770.0,0.60354521]
[1755166999803,0.2007321,121760.0,121750.0,0.04186]
[1755167000009,1.81833564,121760.0,121750.0,0.04186]
[1755167001199,1.81833564,121760.0,121750.0,0.04286]
[1755167001594,1.81833564,121760.0,121750.0,0.04486]
[1755167002305,1.81833564,121760.0,121750.0,0.04386]
[1755167002505,1.81833564,121760.0,121750.0,0.04186]
[1755167004907,1.05945564,121760.0,121750.0,0.04186]
[1755167005111,1.81829564,121760.0,121750.0,0.04186]
[1755167005798,1.05945564,121760.0,121750.0,0.002]
[1755167006006,2.17909564,121760.0,121750.0,0.002]
[1755167007707,1.42025564,121760.0,121750.0,0.002]
[1755167007895,2.17909564,121760.0,121750.0,0.002]
[1755167008098,0.1308786,121750.0,121740.0,0.02617]
[1755167008295,1.04030509,121750.0,121740.0,0.002]
[1755167008707,1.79906509,121750.0,121740.0,0.002]
[1755167009409,1.79906509,121750.0,121740.0,0.003]
[1755167009603,2.27628158,121750.0,121740.0,0.0010001]
[1755167009803,1.81979214,121750.0,121740.0,0.0010001]
[1755167010409,1.79906509,121750.0,121740.0,0.0010001]
[1755167011207,1.72765509,121750.0,121740.0,1e-07]
[1755167011609,0.1308843,121740.0,121730.0,0.04118]
[1755167011809,1.04031079,121740.0,121730.0,0.04118]
[1755167012006,1.04031079,121740.0,121730.0,0.01099]
[1755167012212,1.79907079,121740.0,121730.0,0.01099]
[1755167012611,1.79907079,121740.0,121730.0,0.02517]
[1755167012812,1.79907079,121740.0,121730.0,0.04118]
[1755167013106,1.04031079,121740.0,121730.0,0.04118]
[1755167013309,1.79903079,121740.0,121730.0,0.04118]
[1755167013614,1.04031079,121740.0,121730.0,0.04118]
[1755167013913,1.3218143,121740.0,121730.0,0.04118]
[1755167014112,1.79903079,121740.0,121730.0,0.04118]
[1755167014310,1.79903079,121740.0,121730.0,0.0657]
[1755167015908,0.91159649,121740.0,121730.0,0.027]
[1755167016108,0.0820943,121740.0,121730.0,0.0657]
[1755167016309,0.0820943,121740.0,121730.0,0.98581749]
[1755167016516,0.0820943,121740.0,121730.0,0.98661749]
[1755167018215,0.0820943,121740.0,121730.0,0.509401]
[1755167018416,0.0820943,121740.0,121730.0,0.510401]
[1755167018711,0.1641671,121760.0,121750.0,0.0962672]
[1755167018917,0.0820826,121760.0,121750.0,0.4670572]
[1755167019119,0.1068726,121760.0,121750.0,0.4670572]
[1755167019418,0.1465026,121760.0,121750.0,0.4670572]
[1755167019614,0.2022826,121760.0,121750.0,0.4670572]
[1755167020029,0.1898026,121760.0,121750.0,0.4670572]
[1755167021518,0.1888026,121760.0,121750.0,0.4670572]
[1755167021817,0.1878026,121760.0,121750.0,0.4670572]
[1755167023920,0.2022826,121760.0,121750.0,0.02417]
[1755167024623,0.2022826,121760.0,121750.0,0.38497]
[1755167025521,0.22307097,121760.0,121750.0,0.38497]
[1755167027319,0.22307097,121760.0,121750.0,0.37079]
[1755167027624,0.22307097,121760.0,121750.0,0.38497]
[1755167031921,0.2022826,121760.0,121750.0,0.38497]
[1755167032126,0.22307373,121760.0,121750.0,0.38497]
[1755167032323,0.2022826,121760.0,121750.0,0.38497]
[1755167032530,0.2022826,121760.0,121750.0,0.4670568]
[1755167033028,0.1068726,121760.0,121750.0,1.2252568]
[1755167033823,0.15980338,121760.0,121750.0,1.2252568]
[1755167034224,0.17645338,121760.0,121750.0,1.14317]
[1755167034523,0.22124338,121760.0,121750.0,0.38497]
[1755167034720,0.69845987,121760.0,121750.0,0.0244]
[1755167034921,0.69845987,121760.0,121750.0,0.00999]
[1755167035127,0.202457,121750.0,121740.0,0.38514]
[1755167035327,0.7004649,121750.0,121740.0,0.38514]
[1755167036530,0.6183779,121750.0,121740.0,0.38514]
[1755167036725,1.0612649,121750.0,121740.0,0.02434]
[1755167037426,0.2024638,121740.0,121730.0,1.13433]
[1755167037627,0.67968029,121740.0,121730.0,1.13433]
[1755167038229,0.67968029,121740.0,121730.0,0.38614]
[1755167038731,0.67968029,121740.0,121730.0,0.38714]
[1755167038931,0.67968029,121740.0,121730.0,0.02734]
[1755167039128,0.67968029,121740.0,121730.0,0.01293]
[1755167039519,0.68644982,121740.0,121730.0,0.1094406]
[1755167039724,0.22325333,121740.0,121730.0,0.1094406]
[1755167040421,0.22325333,121740.0,121730.0,0.8674806]
[1755167040826,0.22325333,121740.0,121730.0,0.1094406]
[1755167041034,0.12767333,121740.0,121730.0,0.8674406]
[1755167041435,0.22325333,121740.0,121730.0,0.78534]
[1755167042638,0.70046982,121740.0,121730.0,0.003]
[1755167042836,0.70046982,121740.0,121730.0,0.01293]
[1755167043132,0.67968029,121740.0,121730.0,0.02734]
[1755167050443,0.2024638,121740.0,121730.0,0.01293]
[1755167050642,0.2024638,121740.0,121730.0,0.1094416]
[1755167050838,0.2024638,121740.0,121730.0,0.8672816]
[1755167056743,0.12037,121740.0,121730.0,0.8672816]
[1755167057042,0.2024638,121740.0,121730.0,0.8672816]
[1755167058344,0.2024638,121740.0,121730.0,1.2280816]
[1755167064749,0.1539838,121740.0,121730.0,1.2280816]